[Event "*** SCC Grand Prix: Titled Tuesday Blitz"]
[Site "Chess.com"]
[Date "2020.07.14"]
[Round "5"]
[White "superchess02"]
[Black "Maxim_e2e4"]
[Result "1-0"]
[WhiteElo "2671"]
[BlackElo "2406"]
[TimeControl "180+1"]
[EndTime "10:55:08 PDT"]
[Termination "superchess02 won on time"]

1. d4 {[%clk 0:03:00.9]} 1... Nf6 {[%clk 0:02:36.1]} 2. c4 {[%clk 0:03:01.8]}
2... g6 {[%clk 0:02:35.6]} 3. Nc3 {[%clk 0:03:01.6]} 3... d5 {[%clk 0:02:35.7]}
4. cxd5 {[%clk 0:03:02.5]} 4... Nxd5 {[%clk 0:02:36.6]} 5. e4 {[%clk 0:03:03.4]}
5... Nxc3 {[%clk 0:02:36.1]} 6. bxc3 {[%clk 0:03:04.3]} 6... Bg7 {[%clk
0:02:36.8]} 7. Bc4 {[%clk 0:03:04.9]} 7... c5 {[%clk 0:02:36.5]} 8. Ne2 {[%clk
0:03:05.5]} 8... Nc6 {[%clk 0:02:36.7]} 9. Be3 {[%clk 0:03:05.9]} 9... O-O
{[%clk 0:02:36.6]} 10. O-O {[%clk 0:03:06.4]} 10... e6 {[%clk 0:02:36.1]} 11.
Rb1 {[%clk 0:03:06.1]} 11... cxd4 {[%clk 0:02:20.4]} 12. cxd4 {[%clk 0:03:05.5]}
12... b6 {[%clk 0:02:20.8]} 13. Qd2 {[%clk 0:02:45]} 13... Bb7 {[%clk
0:02:14.7]} 14. Rfd1 {[%clk 0:02:40.5]} 14... Rc8 {[%clk 0:02:13.4]} 15. Rbc1
{[%clk 0:02:23.5]} 15... Na5 {[%clk 0:01:57.1]} 16. Bd3 {[%clk 0:02:23.3]} 16...
Qd7 {[%clk 0:01:56.7]} 17. Bh6 {[%clk 0:02:11.8]} 17... Bxh6 {[%clk 0:01:46.5]}
18. Qxh6 {[%clk 0:02:12.7]} 18... Qa4 {[%clk 0:01:45.9]} 19. e5 {[%clk
0:02:03.1]} 19... Nc4 {[%clk 0:01:29.2]} 20. Ng3 {[%clk 0:02:01.3]} 20... Kh8
{[%clk 0:00:45.5]} 21. Be4 {[%clk 0:01:15]} 21... Bd5 {[%clk 0:00:19.9]} 22. Nh5
{[%clk 0:01:08.7]} 22... Rg8 {[%clk 0:00:19.2]} 23. Nf6 {[%clk 0:01:08.5]} 23...
Rg7 {[%clk 0:00:19.2]} 24. Bxd5 {[%clk 0:01:06.4]} 24... exd5 {[%clk 0:00:18.5]}
25. Rd3 {[%clk 0:01:07]} 1-0

[Event "*** SCC Grand Prix: Titled Tuesday Blitz"]
[Site "Chess.com"]
[Date "2020.07.14"]
[Round "5"]
[White "WildTricks"]
[Black "qingaunlee"]
[Result "1-0"]
[WhiteElo "2513"]
[BlackElo "2344"]
[TimeControl "180+1"]
[EndTime "10:55:08 PDT"]
[Termination "WildTricks won by resignation"]

1. Nf3 {[%clk 0:02:58.5]} 1... d5 {[%clk 0:02:59]} 2. g3 {[%clk 0:02:58.9]} 2...
Nc6 {[%clk 0:02:56.8]} 3. d4 {[%clk 0:02:57.7]} 3... Bg4 {[%clk 0:02:56.6]} 4.
Bg2 {[%clk 0:02:57.6]} 4... Nf6 {[%clk 0:02:54.3]} 5. O-O {[%clk 0:02:55]} 5...
Bxf3 {[%clk 0:02:54.5]} 6. Bxf3 {[%clk 0:02:54.7]} 6... e5 {[%clk 0:02:55.4]} 7.
dxe5 {[%clk 0:02:47.9]} 7... Nxe5 {[%clk 0:02:54.9]} 8. Bg2 {[%clk 0:02:48.6]}
8... Qd7 {[%clk 0:02:49.6]} 9. Bf4 {[%clk 0:02:41.6]} 9... Ng6 {[%clk 0:02:49]}
10. Be3 {[%clk 0:02:41.1]} 10... Be7 {[%clk 0:02:47.7]} 11. c3 {[%clk
0:02:32.5]} 11... O-O {[%clk 0:02:47.1]} 12. Nd2 {[%clk 0:02:32.2]} 12... Ng4
{[%clk 0:02:40.4]} 13. Bf4 {[%clk 0:02:30.7]} 13... Nxf4 {[%clk 0:02:39.7]} 14.
gxf4 {[%clk 0:02:31.6]} 14... c6 {[%clk 0:02:32.5]} 15. e3 {[%clk 0:02:31.2]}
15... Nh6 {[%clk 0:02:24.5]} 16. Nf3 {[%clk 0:02:29]} 16... Bd6 {[%clk
0:02:22.9]} 17. Qc2 {[%clk 0:02:26.1]} 17... Rfe8 {[%clk 0:02:16.3]} 18. Rad1
{[%clk 0:02:24.8]} 18... Qe7 {[%clk 0:02:14.2]} 19. Ng5 {[%clk 0:02:15.5]} 19...
f6 {[%clk 0:02:12.2]} 20. Qxh7+ {[%clk 0:02:13.4]} 20... Kf8 {[%clk 0:02:11.8]}
21. Nf3 {[%clk 0:01:46.6]} 21... Kf7 {[%clk 0:02:09.7]} 22. Nh4 {[%clk 0:01:45]}
22... Rh8 {[%clk 0:02:01.3]} 23. Qg6+ {[%clk 0:01:41.2]} 23... Kg8 {[%clk
0:01:55.5]} 24. Kh1 {[%clk 0:01:30.4]} 24... Qe8 {[%clk 0:01:48]} 25. c4 {[%clk
0:01:24.6]} 25... Nf7 {[%clk 0:01:34.4]} 26. Nf5 {[%clk 0:01:17.4]} 26... Bf8
{[%clk 0:01:33.2]} 27. cxd5 {[%clk 0:01:16.4]} 27... c5 {[%clk 0:01:23.8]} 28.
d6 {[%clk 0:01:14.8]} 28... Nxd6 {[%clk 0:01:21.6]} 29. Bd5+ {[%clk 0:01:08.4]}
29... Nf7 {[%clk 0:01:21.2]} 30. Bxb7 {[%clk 0:01:07]} 30... Rb8 {[%clk
0:01:20.1]} 31. Bd5 {[%clk 0:01:02.1]} 31... Rxb2 {[%clk 0:01:17.3]} 32. Nxg7
{[%clk 0:00:35.6]} 32... Bxg7 {[%clk 0:01:15.5]} 33. Bxf7+ {[%clk 0:00:34.9]}
33... Qxf7 {[%clk 0:01:12.1]} 34. Rd8+ {[%clk 0:00:34.2]} 34... Qf8 {[%clk
0:01:11.9]} 35. Rxf8+ {[%clk 0:00:34.3]} 35... Kxf8 {[%clk 0:01:12]} 36. Rd1
{[%clk 0:00:34]} 1-0

[Event "*** SCC Grand Prix: Titled Tuesday Blitz"]
[Site "Chess.com"]
[Date "2020.07.14"]
[Round "5"]
[White "swimmerchess"]
[Black "Duhless"]
[Result "0-1"]
[WhiteElo "2828"]
[BlackElo "3041"]
[TimeControl "180+1"]
[EndTime "10:55:12 PDT"]
[Termination "Duhless won by resignation"]

1. e4 {[%clk 0:03:00.9]} 1... c5 {[%clk 0:02:58]} 2. Nf3 {[%clk 0:03:00.7]} 2...
d6 {[%clk 0:02:57.9]} 3. d4 {[%clk 0:03:00.8]} 3... cxd4 {[%clk 0:02:58.8]} 4.
Nxd4 {[%clk 0:03:01.7]} 4... Nf6 {[%clk 0:02:59.4]} 5. Nc3 {[%clk 0:03:02.2]}
5... Nc6 {[%clk 0:02:59.6]} 6. Be2 {[%clk 0:02:59.7]} 6... e5 {[%clk 0:02:58]}
7. Nf3 {[%clk 0:02:59.2]} 7... Be7 {[%clk 0:02:57.7]} 8. Bg5 {[%clk 0:02:58.5]}
8... O-O {[%clk 0:02:57.3]} 9. O-O {[%clk 0:02:56.6]} 9... Be6 {[%clk 0:02:57]}
10. Bxf6 {[%clk 0:02:52.2]} 10... Bxf6 {[%clk 0:02:56.4]} 11. Nd5 {[%clk
0:02:52.7]} 11... Rc8 {[%clk 0:02:55.6]} 12. c3 {[%clk 0:02:52.3]} 12... Ne7
{[%clk 0:02:52.4]} 13. Nxf6+ {[%clk 0:02:33.9]} 13... gxf6 {[%clk 0:02:53.3]}
14. Qd2 {[%clk 0:02:29.8]} 14... d5 {[%clk 0:02:49.2]} 15. exd5 {[%clk
0:02:26.4]} 15... Qxd5 {[%clk 0:02:36.2]} 16. Rad1 {[%clk 0:02:02.3]} 16... Qxd2
{[%clk 0:02:32.6]} 17. Rxd2 {[%clk 0:02:03.2]} 17... Rfd8 {[%clk 0:02:27.6]} 18.
Rfd1 {[%clk 0:02:03.5]} 18... Rxd2 {[%clk 0:02:24.4]} 19. Rxd2 {[%clk
0:02:04.4]} 19... Kf8 {[%clk 0:02:17.4]} 20. a3 {[%clk 0:01:51.6]} 20... Nf5
{[%clk 0:02:12.8]} 21. Bd1 {[%clk 0:01:38.5]} 21... Ke7 {[%clk 0:02:09.6]} 22.
Bc2 {[%clk 0:01:37.9]} 22... h6 {[%clk 0:01:53.6]} 23. Kf1 {[%clk 0:01:31]}
23... Nd6 {[%clk 0:01:53]} 24. Bb1 {[%clk 0:00:40.3]} 24... Rc6 {[%clk
0:01:51.5]} 25. Ke1 {[%clk 0:00:38.4]} 25... Nc4 {[%clk 0:01:48.2]} 26. Re2
{[%clk 0:00:37.5]} 26... Rb6 {[%clk 0:01:48.1]} 27. b4 {[%clk 0:00:33.6]} 27...
Nxa3 {[%clk 0:01:45.8]} 28. Bd3 {[%clk 0:00:34.2]} 28... Rc6 {[%clk 0:01:28.7]}
29. Kd2 {[%clk 0:00:31.7]} 29... Rd6 {[%clk 0:01:27.7]} 30. Nh4 {[%clk
0:00:27.6]} 30... f5 {[%clk 0:01:15.4]} 31. f3 {[%clk 0:00:25.4]} 31... Kf6
{[%clk 0:01:08.1]} 32. Ke3 {[%clk 0:00:20]} 32... f4+ {[%clk 0:01:03.8]} 33. Kd2
{[%clk 0:00:19.2]} 33... Bc4 {[%clk 0:01:02.8]} 0-1

[Event "*** SCC Grand Prix: Titled Tuesday Blitz"]
[Site "Chess.com"]
[Date "2020.07.14"]
[Round "5"]
[White "annazero"]
[Black "francyIM"]
[Result "0-1"]
[WhiteElo "2369"]
[BlackElo "2656"]
[TimeControl "180+1"]
[EndTime "10:55:14 PDT"]
[Termination "francyIM won on time"]

1. d4 {[%clk 0:03:00.9]} 1... Nf6 {[%clk 0:02:55.6]} 2. Nf3 {[%clk 0:03:00.4]}
2... g6 {[%clk 0:02:52.8]} 3. Bg5 {[%clk 0:02:59.6]} 3... Bg7 {[%clk 0:02:48.4]}
4. Nbd2 {[%clk 0:02:59.7]} 4... d5 {[%clk 0:02:45.2]} 5. c3 {[%clk 0:02:59.6]}
5... h6 {[%clk 0:02:44.8]} 6. Bh4 {[%clk 0:02:59.3]} 6... O-O {[%clk 0:02:37.8]}
7. e3 {[%clk 0:02:59.3]} 7... c5 {[%clk 0:02:34.3]} 8. dxc5 {[%clk 0:03:00.2]}
8... a5 {[%clk 0:02:33.2]} 9. a4 {[%clk 0:02:59]} 9... Na6 {[%clk 0:02:32.1]}
10. Bxa6 {[%clk 0:02:48.1]} 10... Rxa6 {[%clk 0:02:33]} 11. Bxf6 {[%clk
0:02:28.3]} 11... Rxf6 {[%clk 0:02:28.8]} 12. O-O {[%clk 0:02:21.1]} 12... b6
{[%clk 0:02:23.8]} 13. b4 {[%clk 0:01:58.8]} 13... bxc5 {[%clk 0:02:20.9]} 14.
bxc5 {[%clk 0:01:57.9]} 14... Ba6 {[%clk 0:02:14.7]} 15. Re1 {[%clk 0:01:51.2]}
15... Rc6 {[%clk 0:02:13.5]} 16. Nd4 {[%clk 0:01:31.3]} 16... Rxc5 {[%clk
0:02:13.1]} 17. Rc1 {[%clk 0:01:24.8]} 17... e5 {[%clk 0:02:08]} 18. N4b3 {[%clk
0:01:20.5]} 18... Rc8 {[%clk 0:02:07.4]} 19. e4 {[%clk 0:01:18.3]} 19... f5
{[%clk 0:02:04.9]} 20. exd5 {[%clk 0:01:00.7]} 20... Qxd5 {[%clk 0:02:05.8]} 21.
c4 {[%clk 0:01:00.8]} 21... Qd7 {[%clk 0:01:39.1]} 22. Nxa5 {[%clk 0:00:58.8]}
22... Rfd8 {[%clk 0:01:36.9]} 23. Nab3 {[%clk 0:00:50.4]} 23... Qxa4 {[%clk
0:01:33.5]} 24. Qc2 {[%clk 0:00:25.4]} 24... e4 {[%clk 0:01:29.5]} 25. c5 {[%clk
0:00:08.1]} 25... Bd3 {[%clk 0:01:23]} 26. Qd1 {[%clk 0:00:08.4]} 26... Qb4
{[%clk 0:01:19.8]} 27. h4 {[%clk 0:00:07.6]} 27... Bb5 {[%clk 0:01:16]} 28. Qc2
{[%clk 0:00:05.6]} 28... Ba4 {[%clk 0:01:13.4]} 29. Qa2 {[%clk 0:00:03.5]} 29...
Kh8 {[%clk 0:01:09.8]} 30. h5 {[%clk 0:00:03.8]} 30... Rd3 {[%clk 0:01:08.9]}
0-1

[Event "*** SCC Grand Prix: Titled Tuesday Blitz"]
[Site "Chess.com"]
[Date "2020.07.14"]
[Round "5"]
[White "Airquake"]
[Black "zmeeed67"]
[Result "1-0"]
[WhiteElo "2608"]
[BlackElo "2430"]
[TimeControl "180+1"]
[EndTime "10:55:22 PDT"]
[Termination "Airquake won on time"]

1. e4 {[%clk 0:03:00.9]} 1... Nc6 {[%clk 0:02:58.5]} 2. Nf3 {[%clk 0:02:57.9]}
2... d6 {[%clk 0:02:58.9]} 3. d4 {[%clk 0:02:57.6]} 3... Nf6 {[%clk 0:02:59.1]}
4. Nc3 {[%clk 0:02:57.6]} 4... Bg4 {[%clk 0:02:59.1]} 5. Be2 {[%clk 0:02:57.5]}
5... g6 {[%clk 0:02:59.3]} 6. O-O {[%clk 0:02:56.8]} 6... Bg7 {[%clk 0:02:59.5]}
7. d5 {[%clk 0:02:55.6]} 7... Nb8 {[%clk 0:02:58.9]} 8. h3 {[%clk 0:02:55.3]}
8... Bxf3 {[%clk 0:02:59.2]} 9. Bxf3 {[%clk 0:02:56.2]} 9... O-O {[%clk
0:03:00]} 10. Be2 {[%clk 0:02:56.5]} 10... c6 {[%clk 0:03:00.4]} 11. Be3 {[%clk
0:02:57]} 11... cxd5 {[%clk 0:03:00.2]} 12. exd5 {[%clk 0:02:57.9]} 12... Nbd7
{[%clk 0:02:55.6]} 13. Bc4 {[%clk 0:02:57.5]} 13... Rc8 {[%clk 0:02:44]} 14. Bb3
{[%clk 0:02:57.6]} 14... a6 {[%clk 0:02:44]} 15. Ne2 {[%clk 0:02:53.4]} 15...
Ne5 {[%clk 0:01:50.3]} 16. Bd4 {[%clk 0:02:46.9]} 16... Nfd7 {[%clk 0:01:41.4]}
17. c3 {[%clk 0:02:43.7]} 17... Re8 {[%clk 0:01:27.5]} 18. Re1 {[%clk
0:02:40.9]} 18... Nc5 {[%clk 0:01:15]} 19. Bc2 {[%clk 0:02:38.9]} 19... Ned7
{[%clk 0:01:06.7]} 20. Bxg7 {[%clk 0:02:38.6]} 20... Kxg7 {[%clk 0:01:07.6]} 21.
h4 {[%clk 0:02:38.5]} 21... Nf6 {[%clk 0:01:05.7]} 22. Ng3 {[%clk 0:02:37.8]}
22... h5 {[%clk 0:01:04.3]} 23. Qd2 {[%clk 0:02:32.5]} 23... Qd7 {[%clk
0:00:45.3]} 24. Re2 {[%clk 0:02:06.6]} 24... Qg4 {[%clk 0:00:44.8]} 25. Rae1
{[%clk 0:02:05.6]} 25... Qxh4 {[%clk 0:00:34.7]} 26. Rxe7 {[%clk 0:01:46.5]}
26... Rxe7 {[%clk 0:00:34.9]} 27. Rxe7 {[%clk 0:01:47.4]} 27... Nxd5 {[%clk
0:00:23.3]} 28. Re1 {[%clk 0:01:32.2]} 28... Nf6 {[%clk 0:00:15.9]} 29. Qxd6
{[%clk 0:01:30.4]} 29... Ne6 {[%clk 0:00:12.6]} 30. Bxg6 {[%clk 0:01:04.2]}
30... Kxg6 {[%clk 0:00:09.9]} 31. Qd3+ {[%clk 0:01:03.3]} 31... Kg5 {[%clk
0:00:02.9]} 32. Re5+ {[%clk 0:01:02]} 1-0

[Event "*** SCC Grand Prix: Titled Tuesday Blitz"]
[Site "Chess.com"]
[Date "2020.07.14"]
[Round "5"]
[White "praveenb2002"]
[Black "Lion-Al-Messi"]
[Result "1-0"]
[WhiteElo "2713"]
[BlackElo "2435"]
[TimeControl "180+1"]
[EndTime "10:55:23 PDT"]
[Termination "praveenb2002 won by resignation"]

1. d4 {[%clk 0:03:00.9]} 1... d5 {[%clk 0:02:57.9]} 2. c4 {[%clk 0:03:00.8]}
2... c6 {[%clk 0:02:57.6]} 3. Nf3 {[%clk 0:03:00.8]} 3... Nf6 {[%clk 0:02:55.9]}
4. Nc3 {[%clk 0:03:01]} 4... dxc4 {[%clk 0:02:54.3]} 5. a4 {[%clk 0:02:57.9]}
5... Bf5 {[%clk 0:02:53.5]} 6. e3 {[%clk 0:02:55.9]} 6... e6 {[%clk 0:02:53]} 7.
Bxc4 {[%clk 0:02:56.5]} 7... Bb4 {[%clk 0:02:52.5]} 8. O-O {[%clk 0:02:56.6]}
8... Nbd7 {[%clk 0:02:52.1]} 9. Nh4 {[%clk 0:02:54.6]} 9... O-O {[%clk
0:02:49.5]} 10. Nxf5 {[%clk 0:02:48.3]} 10... exf5 {[%clk 0:02:50.4]} 11. Qc2
{[%clk 0:02:49]} 11... g6 {[%clk 0:02:49.4]} 12. f3 {[%clk 0:02:49.3]} 12... c5
{[%clk 0:02:47.6]} 13. Na2 {[%clk 0:02:39.1]} 13... Ba5 {[%clk 0:02:41.8]} 14.
dxc5 {[%clk 0:02:39.4]} 14... Nxc5 {[%clk 0:02:33.7]} 15. b4 {[%clk 0:02:39.5]}
15... Rc8 {[%clk 0:01:53.8]} 16. bxa5 {[%clk 0:02:37.5]} 16... Qxa5 {[%clk
0:01:52.7]} 17. Bd2 {[%clk 0:02:25.4]} 17... Qxa4 {[%clk 0:01:46.4]} 18. Qxa4
{[%clk 0:02:02.7]} 18... Nxa4 {[%clk 0:01:47.3]} 19. Rfc1 {[%clk 0:01:58.8]}
19... a6 {[%clk 0:01:30.6]} 20. Kf2 {[%clk 0:01:57.5]} 20... b5 {[%clk
0:01:30.4]} 21. Be2 {[%clk 0:01:53.9]} 21... Nd5 {[%clk 0:01:29.1]} 22. Nb4
{[%clk 0:01:50.2]} 22... Nxb4 {[%clk 0:01:07.5]} 23. Bxb4 {[%clk 0:01:51.1]}
23... Rfd8 {[%clk 0:01:07.1]} 24. Ke1 {[%clk 0:01:49.9]} 24... Kg7 {[%clk
0:01:03.2]} 25. Rxc8 {[%clk 0:01:39.6]} 25... Rxc8 {[%clk 0:01:02.8]} 26. Rd1
{[%clk 0:01:40.5]} 26... Rc2 {[%clk 0:01:00.9]} 27. Rd6 {[%clk 0:01:36.5]} 27...
Rb2 {[%clk 0:00:54.8]} 28. Ba5 {[%clk 0:01:30.4]} 28... Rb1+ {[%clk 0:00:50.2]}
29. Kf2 {[%clk 0:01:30.4]} 29... Nc5 {[%clk 0:00:50.4]} 30. Rc6 {[%clk
0:01:27.2]} 30... Rc1 {[%clk 0:00:48.4]} 31. Rd6 {[%clk 0:01:19.8]} 31... Rc2
{[%clk 0:00:46.9]} 32. Ke1 {[%clk 0:01:18.8]} 32... Nb3 {[%clk 0:00:43.8]} 33.
Rxa6 {[%clk 0:01:14.5]} 33... Nc1 {[%clk 0:00:41.6]} 34. Bf1 {[%clk 0:01:08.4]}
34... Ra2 {[%clk 0:00:41]} 35. Bc3+ {[%clk 0:01:07.2]} 35... Kh6 {[%clk
0:00:37.6]} 36. Rxa2 {[%clk 0:01:07.1]} 36... Nxa2 {[%clk 0:00:38.5]} 37. Bd2
{[%clk 0:01:07.7]} 37... b4 {[%clk 0:00:38.3]} 38. Bc4 {[%clk 0:01:07.6]} 38...
Nc3 {[%clk 0:00:36.8]} 39. Bxc3 {[%clk 0:01:08.1]} 39... bxc3 {[%clk 0:00:37.7]}
40. Bxf7 {[%clk 0:01:08.8]} 40... Kg5 {[%clk 0:00:37.1]} 41. Kd1 {[%clk
0:01:05.6]} 1-0

[Event "*** SCC Grand Prix: Titled Tuesday Blitz"]
[Site "Chess.com"]
[Date "2020.07.14"]
[Round "5"]
[White "Alexander_Moskalenko"]
[Black "grunbergmihai"]
[Result "1-0"]
[WhiteElo "2776"]
[BlackElo "2517"]
[TimeControl "180+1"]
[EndTime "10:55:24 PDT"]
[Termination "Alexander_Moskalenko won by resignation"]

1. c4 {[%clk 0:03:00.9]} 1... Nf6 {[%clk 0:02:58.8]} 2. Nc3 {[%clk 0:03:01.4]}
2... g6 {[%clk 0:02:59.1]} 3. g3 {[%clk 0:03:01.4]} 3... d5 {[%clk 0:02:58.9]}
4. cxd5 {[%clk 0:03:00.3]} 4... Nxd5 {[%clk 0:02:58.9]} 5. Bg2 {[%clk
0:02:57.6]} 5... Nxc3 {[%clk 0:02:58.6]} 6. bxc3 {[%clk 0:02:57]} 6... Bg7
{[%clk 0:02:58.2]} 7. h4 {[%clk 0:02:54.7]} 7... c5 {[%clk 0:02:53]} 8. h5
{[%clk 0:02:54.6]} 8... O-O {[%clk 0:02:49.3]} 9. hxg6 {[%clk 0:02:53.9]} 9...
hxg6 {[%clk 0:02:49]} 10. Qa4 {[%clk 0:02:54.4]} 10... e6 {[%clk 0:02:35.8]} 11.
Qg4 {[%clk 0:02:51.9]} 11... e5 {[%clk 0:02:28.4]} 12. Qc4 {[%clk 0:02:47.2]}
12... Na6 {[%clk 0:02:22.1]} 13. Rb1 {[%clk 0:02:33.8]} 13... Rb8 {[%clk
0:02:17.7]} 14. d3 {[%clk 0:02:25.4]} 14... Be6 {[%clk 0:02:11.4]} 15. Qa4
{[%clk 0:02:13.9]} 15... e4 {[%clk 0:02:04.2]} 16. Qxe4 {[%clk 0:02:03.4]} 16...
Bxc3+ {[%clk 0:02:03.6]} 17. Kf1 {[%clk 0:02:03.3]} 17... b5 {[%clk 0:01:52.8]}
18. Bf4 {[%clk 0:01:31.8]} 18... Rb6 {[%clk 0:01:42]} 19. Be5 {[%clk 0:01:31.5]}
19... Bxe5 {[%clk 0:01:18.3]} 20. Qxe5 {[%clk 0:01:32.4]} 20... f6 {[%clk
0:01:17.9]} 21. Qe4 {[%clk 0:01:26.2]} 21... f5 {[%clk 0:01:11.4]} 22. Qe3
{[%clk 0:01:15.4]} 22... Qd4 {[%clk 0:01:06.8]} 23. Qxd4 {[%clk 0:01:07.4]}
23... cxd4 {[%clk 0:01:06.6]} 24. a3 {[%clk 0:01:08.3]} 24... Rc8 {[%clk
0:00:56.2]} 25. Nf3 {[%clk 0:00:56.2]} 25... Rd8 {[%clk 0:00:40.2]} 26. Rh4
{[%clk 0:00:54.6]} 26... b4 {[%clk 0:00:26.9]} 27. axb4 {[%clk 0:00:53.6]} 27...
Rxb4 {[%clk 0:00:26.7]} 28. Rxb4 {[%clk 0:00:51.7]} 28... Nxb4 {[%clk
0:00:26.3]} 29. Nxd4 {[%clk 0:00:52.2]} 29... Bd5 {[%clk 0:00:20.7]} 30. Nxf5
{[%clk 0:00:51.8]} 30... Bxg2+ {[%clk 0:00:18.5]} 31. Kxg2 {[%clk 0:00:52.7]}
31... Nxd3 {[%clk 0:00:17.9]} 32. Nh6+ {[%clk 0:00:47]} 1-0

[Event "*** SCC Grand Prix: Titled Tuesday Blitz"]
[Site "Chess.com"]
[Date "2020.07.14"]
[Round "5"]
[White "maxsergej"]
[Black "aripov96"]
[Result "0-1"]
[WhiteElo "2079"]
[BlackElo "2418"]
[TimeControl "180+1"]
[EndTime "10:55:24 PDT"]
[Termination "aripov96 won by resignation"]

1. e4 {[%clk 0:03:00.9]} 1... c5 {[%clk 0:02:23]} 2. Nf3 {[%clk 0:02:59.2]} 2...
Nc6 {[%clk 0:02:22.5]} 3. d4 {[%clk 0:02:59]} 3... cxd4 {[%clk 0:02:23.4]} 4.
Nxd4 {[%clk 0:02:59.1]} 4... g6 {[%clk 0:02:23.7]} 5. Nc3 {[%clk 0:02:58.4]}
5... Bg7 {[%clk 0:02:24]} 6. Be3 {[%clk 0:02:58.6]} 6... Nf6 {[%clk 0:02:24.7]}
7. Bc4 {[%clk 0:02:57.8]} 7... d6 {[%clk 0:02:25.3]} 8. f3 {[%clk 0:02:54.7]}
8... Qb6 {[%clk 0:02:25.8]} 9. Bb3 {[%clk 0:02:37.3]} 9... Nxe4 {[%clk
0:01:41.4]} 10. Nf5 {[%clk 0:02:08.2]} 10... Bxc3+ {[%clk 0:01:08.7]} 11. bxc3
{[%clk 0:02:07.2]} 11... Qa5 {[%clk 0:00:32]} 12. Ng7+ {[%clk 0:01:44.9]} 12...
Kf8 {[%clk 0:00:30.8]} 13. Bh6 {[%clk 0:01:44.3]} 13... Qxc3+ {[%clk 0:00:26.9]}
14. Kf1 {[%clk 0:01:44.1]} 14... Nd2+ {[%clk 0:00:19.9]} 15. Bxd2 {[%clk
0:01:24.8]} 15... Qxg7 {[%clk 0:00:19.4]} 16. g3 {[%clk 0:01:24.5]} 16... Bh3+
{[%clk 0:00:18.7]} 17. Kf2 {[%clk 0:01:23.6]} 17... Qd4+ {[%clk 0:00:18.1]} 18.
Be3 {[%clk 0:01:22.4]} 18... Qxd1 {[%clk 0:00:18.1]} 19. Rhxd1 {[%clk 0:01:22]}
19... Be6 {[%clk 0:00:18.6]} 20. Bxe6 {[%clk 0:01:16.4]} 20... fxe6 {[%clk
0:00:19.5]} 21. Rab1 {[%clk 0:01:16]} 21... b6 {[%clk 0:00:20]} 22. c4 {[%clk
0:01:16.1]} 22... Kf7 {[%clk 0:00:20]} 23. f4 {[%clk 0:01:15.1]} 23... Rac8
{[%clk 0:00:20]} 24. Kf3 {[%clk 0:01:14.1]} 24... Na5 {[%clk 0:00:20.1]} 25. Bd4
{[%clk 0:01:07.2]} 25... Rhd8 {[%clk 0:00:18.6]} 26. Re1 {[%clk 0:01:03.8]}
26... Rxc4 {[%clk 0:00:18.3]} 27. Ba1 {[%clk 0:00:56.8]} 27... Rdc8 {[%clk
0:00:18.3]} 28. Re2 {[%clk 0:00:54.6]} 28... Nb7 {[%clk 0:00:17.8]} 29. Rbe1
{[%clk 0:00:54.3]} 29... Nc5 {[%clk 0:00:18.3]} 30. h4 {[%clk 0:00:48.5]} 30...
Ra4 {[%clk 0:00:18.2]} 31. Bd4 {[%clk 0:00:45.7]} 31... Rxd4 {[%clk 0:00:15.2]}
0-1

[Event "*** SCC Grand Prix: Titled Tuesday Blitz"]
[Site "Chess.com"]
[Date "2020.07.14"]
[Round "5"]
[White "NemtsevIgor"]
[Black "mohssenbinaddi"]
[Result "1-0"]
[WhiteElo "2340"]
[BlackElo "2156"]
[TimeControl "180+1"]
[EndTime "10:55:25 PDT"]
[Termination "NemtsevIgor won by resignation"]

1. d3 {[%clk 0:03:00.9]} 1... c6 {[%clk 0:03:00.9]} 2. g3 {[%clk 0:03:00.3]}
2... d5 {[%clk 0:03:01.8]} 3. Nf3 {[%clk 0:03:00]} 3... Bg4 {[%clk 0:03:00.1]}
4. Bg2 {[%clk 0:03:00.1]} 4... Nd7 {[%clk 0:02:59.7]} 5. O-O {[%clk 0:03:00.1]}
5... e6 {[%clk 0:02:59.2]} 6. Nc3 {[%clk 0:02:59.7]} 6... Ngf6 {[%clk
0:02:59.1]} 7. e4 {[%clk 0:02:59.4]} 7... Ne5 {[%clk 0:02:48.8]} 8. Bf4 {[%clk
0:02:50.9]} 8... Ng6 {[%clk 0:02:42.4]} 9. Bg5 {[%clk 0:02:46.9]} 9... h6 {[%clk
0:02:42.2]} 10. Bd2 {[%clk 0:02:44]} 10... Ne5 {[%clk 0:02:36.5]} 11. d4 {[%clk
0:02:29]} 11... Nc4 {[%clk 0:02:29.8]} 12. e5 {[%clk 0:02:24.3]} 12... Ne4
{[%clk 0:02:14.4]} 13. Bc1 {[%clk 0:02:15.5]} 13... Nxc3 {[%clk 0:02:06.7]} 14.
bxc3 {[%clk 0:02:15.1]} 14... Be7 {[%clk 0:02:02.1]} 15. h3 {[%clk 0:02:09.7]}
15... Bh5 {[%clk 0:02:01.5]} 16. g4 {[%clk 0:02:05.8]} 16... Bg6 {[%clk
0:02:01.2]} 17. Nd2 {[%clk 0:02:04.8]} 17... b5 {[%clk 0:01:49.7]} 18. Nxc4
{[%clk 0:01:55.4]} 18... bxc4 {[%clk 0:01:35]} 19. f4 {[%clk 0:01:54.7]} 19...
Qa5 {[%clk 0:01:23.1]} 20. f5 {[%clk 0:01:50.4]} 20... Bh7 {[%clk 0:01:20.7]}
21. Bd2 {[%clk 0:01:29.8]} 21... Bg5 {[%clk 0:01:20.5]} 22. Rb1 {[%clk
0:01:21.9]} 22... O-O {[%clk 0:01:16.3]} 23. Bxg5 {[%clk 0:01:21.3]} 23... hxg5
{[%clk 0:01:15.9]} 24. Qd2 {[%clk 0:01:21.3]} 24... exf5 {[%clk 0:00:53.5]} 25.
gxf5 {[%clk 0:01:19]} 25... f6 {[%clk 0:00:51.3]} 26. Rb7 {[%clk 0:01:08]} 26...
Rab8 {[%clk 0:00:49.3]} 27. Rxb8 {[%clk 0:00:53.5]} 27... Rxb8 {[%clk 0:00:49]}
28. Qe3 {[%clk 0:00:50.8]} 28... Qxa2 {[%clk 0:00:38.8]} 29. exf6 {[%clk
0:00:48.5]} 1-0